[Event "Grand Prix Romania 1st Stage 2024"]
[Site "Bucuresti"]
[Date "2024.03.24"]
[Round "7.17"]
[White "Filip, Andrei"]
[Black "Rozen, Eytan"]
[Result "0-1"]
[ECO "B12"]
[WhiteElo "2289"]
[BlackElo "2487"]
[Annotator "TA"]
[PlyCount "58"]
[EventDate "2024.03.20"]
[EventType "swiss"]
[EventCountry "ROU"]
[SourceTitle "playchess.com"]
[Source "ChessBase"]
[SourceQuality "1"]
[TimeControl "900+5"]

{[%evp 9,58,0,31,29,47,-16,-16,-43,-37,-42,-5,-36,-56,-38,50,43,122,130,115,111,155,145,151,152,159,162,185,-128,-139,-229,-230,-223,-225,-277,-277,-284,-256,-253,-242,-449,-452,-487,-504,-496,-491,-486,-454,-460,-446,-1833,-517]} 1. e4 {[%emt 0:00:02]} c6 {[%emt 0:00:01]} 2. d4 {[%emt 0:00:03]} d5 {[%emt 0:00:01]} 3. e5 {[%emt 0:00:01]} c5 {[%emt 0:00:01]} 4. Nf3 {[%emt 0:00:02]} Nc6 {[%emt 0:00:01]} 5. dxc5 {[%emt 0:00:12]} e6 {[%emt 0:00:12]} 6. Be3 {[%emt 0:00:29]} Nh6 {[%emt 0:00:22]} 7. Bb5 {[%emt 0:02:01]} (7. Bxh6 $14 gxh6 8. Bb5) 7... Nf5 $11 {[%emt 0:00:02]} 8. Bd4 {[%emt 0:00:24] The position is equal.} Qa5+ {[%emt 0:01:07]} 9. Nc3 {[%emt 0:00:03]} Bd7 {[%emt 0:00:02]} 10. a3 {[%emt 0:03:04]} Nfxd4 {[%emt 0:00:14]} 11. Nxd4 {[%emt 0:00:06]} Nxe5 {[%emt 0:00:29]} (11... Bxc5 $6 12. Bxc6 (12. b4 Bxd4 13. bxa5 Bxc3+ 14. Kf1 Bxa1 $16) 12... bxc6 13. b4 Bxd4 14. bxa5 $16) (11... Qc7 $1 $15 12. b4 Qxe5+ 13. Nce2 Qc7) 12. Qe2 $14 {[%emt 0:00:44]} Nc6 {[%emt 0:01:02]} (12... Bxb5 $1 $14 13. Qxe5 Bc4) 13. Nb3 $16 {[%emt 0:00:28]} Qd8 {[%emt 0:00:19]} 14. Nxd5 {[%emt 0:00:04]} Rc8 {[%emt 0:00:37]} 15. O-O-O {[%emt 0:01:46]} Be7 {[%emt 0:00:20]} 16. Nxe7 {[%emt 0:00:11]} Qxe7 {[%emt 0:00:02]} 17. Rd6 {[%emt 0:00:38] Threatens to win with Rhd1.} a6 {[%emt 0:00:34]} 18. Ba4 {[%emt 0:01:18] [#]} ({White should try} 18. Rhd1 $18 Rc7 19. Bxc6 Bxc6 20. Rd8+ Qxd8 21. Rxd8+ Kxd8 22. Na5) 18... b5 $1 $17 {[%emt 0:00:20]} 19. Rhd1 {[%emt 0:00:28]} (19. Bxb5 $17 {might work better.} axb5 20. Qd1 (20. Rhd1 Nb8 $17)) 19... bxa4 $19 {[%emt 0:00:59]} 20. Rxd7 {[%emt 0:00:18]} Qg5+ {[%emt 0:00:01]} 21. Kb1 {[%emt 0:02:04] f4 would now be deadly.} axb3 {[%emt 0:00:01]} 22. cxb3 {[%emt 0:00:43]} Qxc5 {[%emt 0:00:40]} (22... Qxg2 23. Qxa6 O-O 24. b4 $17) 23. R1d5 {[%emt 0:01:06]} Qb6 {[%emt 0:01:43][%cal Oe8g8]} 24. Qh5 $2 {[%emt 0:00:39]} (24. R5d6 {was necessary.} O-O (24... Qxb3 $2 25. Qxa6 $19) 25. Qc4) 24... Qxf2 {[%emt 0:00:14] Black is clearly winning.} (24... exd5 25. Qxf7#) 25. Rd3 {[%emt 0:00:10]} O-O {[%emt 0:00:31]} (25... Qxg2 26. Qxf7#) 26. Rf3 {[%emt 0:00:00]} Qe1+ {[%emt 0:00:27]} (26... Qxg2 27. Rfxf7 Rxf7 28. Qxf7+ Kh8 29. Qxe6 Qf1+ (29... Qxh2 $2 30. Qxc6 Qg1+ 31. Ka2 $18) 30. Ka2 $19) 27. Ka2 {[%emt 0:00:01][%cal Rf3f7]} g6 {[%emt 0:00:22] [#] ( -> ...Nb4+)} 28. Qh6 {[%emt 0:00:02] Intending Rh3 and mate.} Qe5 {[%emt 0:00:36]} 29. h4 {[%emt 0:00:13]} (29. Rc3 $142) 29... Qg7 {[%emt 0:00:05] Weighted Error Value: White=0.71/Black=0.15 (very precise) .  Missed win:     	White=1     	---        Mistake:       	White=4     	Black=3      Inaccurate:     	White=2     	Black=1      OK:         	White=8     	Black=9      Best:        	White=4     	Black=5      Strong:       	---       	Black=1} (29... Nb4+ $142 30. axb4 Rc2 31. Qxf8+ Kxf8 32. Rfxf7+ Kg8 33. Rg7+ Qxg7 34. Rd8+ Kf7 35. Rd7+ Kf8 36. Rxg7 Kxg7 37. Kb1 Rc8 (37... Rxg2 $2 38. b5 $19) 38. h5 e5 (38... gxh5 {is a self mate.} 39. Ka2 e5 40. Ka3 e4 41. b5 axb5 42. g4 e3 43. gxh5 e2 44. h6+ Kxh6 45. Kb4 e1=Q+ 46. Kxb5 Qe8+ 47. Kb6 Qc6+ 48. Ka5 Qb7 49. b4 Ra8#) 39. Ka2 e4 (39... gxh5 {gets mated.} 40. Ka3 e4 41. b5 axb5 42. g4 e3 43. gxh5 e2 44. h6+ Kxh6 45. Kb4 e1=Q+ 46. Kxb5 Qe8+ 47. Ka6 Qc6+ 48. Ka5 Rb8 49. b4 Qb5#) 40. Ka3 e3 (40... gxh5 41. b5 axb5 42. g4 e3 43. gxh5 e2 44. h6+ Kxh6 45. Kb4 e1=Q+ 46. Kxb5 Qe6 47. Ka4 Qa6+ 48. Kb4 Qb7+ 49. Ka5 Ra8#) 41. b5 axb5 (41... gxh5 42. bxa6 e2 43. b4 e1=Q 44. a7 Qe3+ 45. Ka4 Qxa7+ 46. Kb3 Qf7+ 47. Ka4 Qd5 48. b5 Qa2+ 49. Kb4 Rc4#) (41... e2 42. bxa6 e1=Q 43. b4 Qa1+ 44. Kb3 Rc1 45. g4 Qxa6 46. h6+ Kf8 47. g5 Qc4+ 48. Ka4 Ra1#) 42. h6+ Kf7 (42... Kxh6 43. g4 e2 44. g5+ Kxg5 45. Kb4 e1=Q+ 46. Kxb5 Qe5+ 47. Ka4 Qd5 48. Kb4 Qc5+ 49. Ka4 Ra8#) 43. g4 e2 44. Kb4 e1=Q+ (44... e1=B+ $2 45. Kxb5 Bd2 46. b4 $19) 45. Kxb5 Qe6 46. Ka4 Qa6+ (46... Qxg4+ {leads to mate.} 47. Kb5 Qd7+ 48. Kb6 Qc7+ 49. Ka6 Rb8 50. b4 Qb6#) 47. Kb4 Qb7+ 48. Ka5 Ra8#) 0-1

[Event "Grand Prix Romania 1st Stage 2024"]
[Site "Bucuresti"]
[Date "2024.03.24"]
[Round "7.19"]
[White "Bernadskiy, Vitaliy"]
[Black "Cnejev, Vladimir-Alexandru"]
[Result "1-0"]
[ECO "C92"]
[WhiteElo "2573"]
[BlackElo "2311"]
[Annotator "TA"]
[PlyCount "75"]
[EventDate "2024.03.20"]
[EventType "swiss"]
[EventCountry "ROU"]
[SourceTitle "playchess.com"]
[Source "ChessBase"]
[SourceQuality "1"]
[TimeControl "900+5"]

{[%evp 26,75,32,27,39,31,34,0,49,21,189,161,243,245,252,232,241,107,88,81,67,47,60,43,34,31,75,-11,0,0,107,113,148,134,135,131,421,342,459,452,916,906,1103,778,1616,1597,1680,1590,1975,1891,29993,981]} 1. e4 {[%emt 0:00:04]} e5 {[%emt 0:00:01]} 2. Nf3 {[%emt 0:00:01]} Nc6 {[%emt 0:00:02]} 3. Bb5 {[%emt 0:00:02][%cal Bf1b5,Bb5a4,Ba4b3][%mdl 32]} a6 {[%emt 0:00:05]} 4. Ba4 {[%emt 0:00:01]} Nf6 {[%emt 0:00:03]} 5. O-O {[%emt 0:00:03]} Be7 {[%emt 0:00:07]} 6. Re1 {[%emt 0:00:08]} b5 {[%emt 0:00:09]} 7. Bb3 {[%emt 0:00:01]} d6 {[%emt 0:00:02]} 8. c3 {[%emt 0:00:02]} O-O {[%emt 0:00:05]} 9. h3 {[%emt 0:00:02]} Bb7 {[%emt 0:00:06]} 10. d4 {[%emt 0:00:03]} Re8 {[%emt 0:00:18]} 11. Nbd2 {[%emt 0:00:32]} Bf8 {[%emt 0:00:05]} 12. a3 {[%emt 0:00:03]} g6 {[%emt 0:00:52]} 13. Ba2 {[%emt 0:01:02]} Bg7 {[%emt 0:00:03]} 14. d5 {[%emt 0:00:37]} (14. b4 {is more complex.} a5 15. Ng5 Re7 16. d5) 14... Nb8 {[%emt 0:00:33]} 15. c4 {[%emt 0:00:03]} c6 {[%emt 0:00:11]} 16. dxc6 {[%emt 0:00:04]} Bxc6 {[%emt 0:00:24]} (16... Nxc6 $11 17. cxb5 axb5) 17. b4 {[%emt 0:00:07]} bxc4 $2 {[%emt 0:00:56]} (17... h6 $11 {and Black is okay.}) 18. Nxc4 $18 {[%emt 0:00:45]} (18. Bxc4 $6 Nbd7 $14) 18... Nxe4 {[%emt 0:06:52] [#]} (18... d5 $142) 19. Rxe4 $1 {[%emt 0:00:02][%mdl 512]} d5 {[%emt 0:00:01][%cal Bd6d5,Bd5c4,Bc4c3][%mdl 32]} (19... Bxe4 20. Nxd6 Rf8 21. Ng5 $18) 20. Bg5 {[%emt 0:00:10]} Qc7 {[%emt 0:01:31] [#]} 21. Rxe5 {[%emt 0:00:22]} dxc4 $16 {[%emt 0:01:08]} 22. Rxe8+ {[%emt 0:00:02]} Bxe8 {[%emt 0:00:01]} 23. Rc1 {[%emt 0:00:02]} c3 {[%emt 0:00:01]} 24. Nd4 {[%emt 0:01:15][%cal Bf3d4,Bd4e2,Be2f4,Bf4d5][%mdl 32]} Nc6 {[%emt 0:00:59]} 25. Ne2 $36 {[%emt 0:00:03][%mdl 2048] White has the initiative.} Qe5 {[%emt 0:00:58]} 26. Bh4 {[%emt 0:00:33]} (26. Bf4 $16 Qf5 27. g4 (27. Bb1 Qe6 $14)) 26... Qh5 {[%emt 0:00:49]} 27. Bg3 {[%emt 0:00:29][%cal Od1e1]} Rd8 {[%emt 0:00:01]} (27... a5 $11 28. Bc4 (28. Nxc3 $2 Qxd1+ 29. Nxd1 axb4 $19) 28... axb4 29. axb4 Nxb4) 28. Qe1 {[%emt 0:00:01]} Ne5 {[%emt 0:00:50]} 29. Nf4 {[%emt 0:00:01] Dodges Nd3} ({Reject} 29. Rxc3 $6 Nd3 30. Qd2 Bxc3 31. Nxc3 Qf5 $14) 29... Qf5 {[%emt 0:00:04]} 30. Rxc3 {[%emt 0:00:24] Threatens to win with Nd5.} g5 $2 {[%emt 0:00:06][%mdl 8192]} (30... Bb5 $16) 31. Nd5 {[%emt 0:00:04] Black must now prevent Ne7+.} Kh8 {[%emt 0:00:10]} 32. Re3 {[%emt 0:00:13]} Bc6 {[%emt 0:00:05]} (32... f6 $142 33. Nxf6 Ba4 34. Rxe5 Qxf6) 33. Rxe5 $18 {[%emt 0:00:07]} Qc2 {[%emt 0:00:05]} 34. Bb1 {[%emt 0:00:13]} Qb3 {[%emt 0:00:02] [#]} 35. Qe4 $1 {[%emt 0:00:09][%csl Gb1][%cal Re4h7]} Qd1+ {[%emt 0:00:08]} (35... Qxb1+ 36. Qxb1) 36. Kh2 {[%emt 0:00:01]} Qh5 {[%emt 0:00:01] [#]} 37. Rxg5 $3 {[%emt 0:00:09]} Bxd5 {[%emt 0:00:08]} (37... f5 38. Qxf5) 38. Rxh5 {[%emt 0:00:02] Weighted Error Value: White=0.32/Black=0.89.  Loses game:     	---       	Black=2      Mistake:       	White=2     	Black=4      Inaccurate:     	White=2     	Black=3      OK:         	White=8     	Black=6      Best:        	White=1     	Black=1      Brilliant:      	White=1     	---} (38. Rxd5 $142 Bf6 39. Rxh5 Kg7 40. Be5 (40. Qxh7+ Kf8 41. Ba2 Bg7 42. Qf5 f6 43. Qe6 Rd5 44. Bxd5 Bh8 45. Qf7#) 40... Bxe5+ 41. Qxe5+ Kf8 42. Rxh7 (42. Bxh7 Re8 43. Qd6+ Re7 44. Bf5 Kg7 45. Qh6+ Kg8 46. Qh8#) 42... f6 43. Qxf6+ Kg8 44. Qxd8#) 1-0

[Event "Grand Prix Romania 1st Stage 2024"]
[Site "Bucuresti"]
[Date "2024.03.24"]
[Round "7.20"]
[White "Serban, Cristian-Stefan"]
[Black "Jianu, Vlad-Cristian"]
[Result "0-1"]
[ECO "E05"]
[WhiteElo "2309"]
[BlackElo "2491"]
[Annotator "TA"]
[PlyCount "32"]
[EventDate "2024.03.20"]
[EventType "swiss"]
[EventCountry "ROU"]
[SourceTitle "playchess.com"]
[Source "ChessBase"]
[SourceQuality "1"]
[TimeControl "900+5"]

{[%evp 12,32,23,17,19,16,0,0,6,0,13,-22,-33,-68,-57,-52,-56,-102,-60,-144,-153,-486,-468]} 1. d4 {[%emt 0:00:02]} Nf6 {[%emt 0:00:01]} 2. c4 {[%emt 0:00:02]} e6 {[%emt 0:00:01]} 3. Nf3 {[%emt 0:00:01]} d5 {[%emt 0:00:04]} 4. g3 {[%emt 0:00:02]} Be7 {[%emt 0:00:18]} 5. Bg2 {[%emt 0:00:03]} O-O {[%emt 0:00:02]} 6. O-O {[%emt 0:00:02]} dxc4 {[%emt 0:00:01]} 7. Qc2 {[%emt 0:00:02]} b6 {[%emt 0:00:04]} 8. Ne5 {[%emt 0:01:07]} Qxd4 {[%emt 0:00:03]} 9. Bxa8 {[%emt 0:00:31] [#] Strongly threatening Qc3.} Qxe5 {[%emt 0:00:01] The position is equal.} 10. Bf4 {[%emt 0:00:40]} Qc5 {[%emt 0:00:28]} 11. Bg2 {[%emt 0:00:52][%mdl 1024] White has compensation.} Nd5 {[%emt 0:01:26]} 12. Nd2 {[%emt 0:00:58]} b5 {[%emt 0:01:52]} 13. a4 {[%emt 0:00:29]} a6 {[%emt 0:00:11]} 14. Rfc1 {[%emt 0:01:37]} (14. Rfd1 $15) 14... Nc6 {[%emt 0:00:19]} 15. Ne4 {[%emt 0:01:26]} ({Better is} 15. axb5 $15 axb5 16. b3) 15... Qb6 $17 {[%emt 0:00:06] Threatens to win with ...Nxf4.} 16. b3 $2 {[%emt 0:00:23] [#]} (16. Ng5 $17 g6 17. Bxd5 exd5 18. e3) 16... Nd4 {[%emt 0:00:38][%csl LRb3,LRc2] White got outplayed after the opening.   Weighted Error Value: White=0.60/Black=0.07 (flawless) .  Loses game:     	White=1     	---        Mistake:       	White=2     	---        Inaccurate:     	White=2     	Black=1      OK:         	White=1     	Black=5      Best:        	---       	Black=2} 0-1

[Event "Grand Prix Romania 1st Stage 2024"]
[Site "Bucuresti"]
[Date "2024.03.24"]
[Round "7.21"]
[White "Castellanos Rodriguez, Renier"]
[Black "Prisacaru, Stefan-Emilian"]
[Result "1-0"]
[ECO "A11"]
[WhiteElo "2469"]
[BlackElo "2273"]
[Annotator "TA"]
[PlyCount "185"]
[EventDate "2024.03.20"]
[EventType "swiss"]
[EventCountry "ROU"]
[SourceTitle "playchess.com"]
[Source "ChessBase"]
[SourceQuality "1"]
[TimeControl "900+5"]

{[%evp 59,185,20,29,24,54,10,16,14,34,38,73,73,73,73,87,4,256,247,256,242,243,250,247,237,247,132,302,308,287,313,285,106,111,112,104,97,103,100,110,106,118,118,118,118,118,118,118,118,118,118,122,122,123,118,122,118,118,118,122,118,253,146,146,146,146,111,111,111,111,111,111,110,111,25,111,88,104,0,88,0,0,0,16,0,18,0,0,0,0,0,0,-698,8,8,38,38,150,150,150,150,150,150,150,150,150,150,1083,617,575,532,1635,179,179,171,1633,1555,1341,1268,29984,29985,29985,29986,29990,29989,29991,29989,29996,29997]} 1. c4 {[%emt 0:00:01]} c6 {[%emt 0:00:00]} 2. Nf3 {[%emt 0:00:15]} d5 {[%emt 0:00:01]} 3. e3 {[%emt 0:00:01]} Nf6 {[%emt 0:00:01]} 4. Nc3 {[%emt 0:00:09]} e6 {[%emt 0:00:02]} 5. b3 {[%emt 0:00:16]} Bd6 {[%emt 0:00:03]} 6. Bb2 {[%emt 0:00:09] A11: Reti-Eröffnung.} e5 {[%emt 0:00:12]} 7. cxd5 {[%emt 0:00:02]} cxd5 {[%emt 0:00:00]} 8. Nb5 {[%emt 0:00:04]} Nc6 {[%emt 0:00:02]} 9. Nxd6+ {[%emt 0:00:04]} Qxd6 {[%emt 0:00:01]} 10. Bb5 {[%emt 0:00:04]} e4 {[%emt 0:01:32]} 11. Ne5 {[%emt 0:00:02]} O-O {[%emt 0:00:27]} 12. Nxc6 {[%emt 0:00:59]} bxc6 {[%emt 0:00:01]} 13. Be2 {[%emt 0:00:02]} a5 {[%emt 0:01:14]} 14. O-O {[%emt 0:00:44]} Ba6 {[%emt 0:00:17]} 15. d3 {[%emt 0:00:02]} exd3 {[%emt 0:00:15]} 16. Bxd3 {[%emt 0:00:01]} Bxd3 {[%emt 0:00:01]} 17. Qxd3 {[%emt 0:00:02]} a4 {[%emt 0:00:01]} 18. h3 {[%emt 0:00:16]} axb3 {[%emt 0:00:16]} 19. axb3 {[%emt 0:00:02]} Rfb8 $146 {[%emt 0:00:50]} ({Predecessor:} 19... Ne4 20. Qd4 f6 21. Rfd1 Qc5 22. Rxa8 Rxa8 23. Qxc5 Nxc5 24. b4 Na4 25. Bd4 Rb8 {½-½ Gurevich,D (2399)-Aditya,M (2438) Titled Tuesday intern op 4th Aug 10am blitz 2020 (5)}) 20. Rxa8 {[%emt 0:00:17]} Rxa8 {[%emt 0:00:00]} 21. Rc1 {[%emt 0:00:03]} Rb8 {[%emt 0:01:26]} 22. Qf5 {[%emt 0:00:21]} Nd7 {[%emt 0:03:47]} 23. Qg4 {[%emt 0:00:19]} f6 {[%emt 0:00:58]} 24. Qa4 {[%emt 0:00:20]} Rc8 {[%emt 0:03:09]} 25. Qa6 {[%emt 0:00:50]} Qc7 {[%emt 0:00:19]} 26. Bd4 {[%emt 0:00:16]} Nb8 {[%emt 0:00:22]} 27. Qd3 {[%emt 0:00:56]} Qb7 {[%emt 0:01:07]} 28. Qf5 {[%emt 0:00:53]} Qd7 {[%emt 0:00:11]} 29. Qd3 {[%emt 0:01:40]} Qb7 {[%emt 0:00:00]} 30. Bc5 {[%emt 0:01:17]} Nd7 {[%emt 0:00:17]} 31. Bd6 {[%emt 0:00:02]} Ne5 {[%emt 0:00:28]} 32. Qc3 {[%emt 0:00:58]} Nf7 {[%emt 0:00:02]} 33. Bf4 {[%emt 0:00:02]} Qb5 {[%emt 0:00:10]} 34. b4 {[%emt 0:00:19]} h6 {[%emt 0:00:09]} 35. Qc5 {[%emt 0:00:18]} Qxc5 36. Rxc5 {[%emt 0:00:01]} Ne5 {[%emt 0:00:09]} 37. b5 {[%emt 0:00:17]} ({Vorzuziehen ist} 37. Bxe5 $1 $16 fxe5 38. e4 (38. b5 Kf7 $11) 38... dxe4 39. Rxe5) 37... Nd3 $2 {[%emt 0:00:09][%mdl 8192]} (37... Nd7 38. Rxc6 Rxc6 39. bxc6 $18) (37... Kf7 $1 $11 {und Schwarz steht sicher.}) 38. Rxc6 $18 {[%emt 0:00:04]} Ra8 {[%emt 0:00:05]} 39. Bg3 {[%emt 0:00:34]} Ra1+ {[%emt 0:00:03]} 40. Kh2 {[%emt 0:00:00]} Rb1 {[%emt 0:00:05]} 41. Rc3 {[%emt 0:00:33]} Ne5 {[%emt 0:00:05]} 42. Rc5 {[%emt 0:00:02]} (42. Bxe5 $18 fxe5 43. Rc5) 42... Nd3 $2 {[%emt 0:00:09]} (42... Nc4 $16 43. Bc7 (43. Rxd5 Na3 $16) 43... Na3) 43. Rxd5 $18 {[%emt 0:00:05]} Nb4 {[%emt 0:00:05]} 44. Rd8+ {[%emt 0:00:28]} Kh7 {[%emt 0:00:01]} 45. Rd4 $2 {[%emt 0:00:26]} (45. Rd2 $18 {bietet bessere Gewinnchancen.}) 45... Na2 $16 {[%emt 0:00:06]} 46. Rd7 {[%emt 0:01:27]} Rxb5 {[%emt 0:00:03]} 47. Bd6 {[%emt 0:00:01]} Rd5 {[%emt 0:00:09]} 48. Rd8 {[%emt 0:00:05]} Nc3 {[%emt 0:00:04]} 49. Be7 {[%emt 0:00:01]} Rxd8 {[%emt 0:00:04]} 50. Bxd8 {[%emt 0:00:01]} Ne4 {[%emt 0:00:02]} 51. f3 {[%emt 0:00:02]} Nc5 {[%emt 0:00:02]} 52. Bb6 {[%emt 0:00:03]} Ne6 {[%emt 0:00:02]} 53. Kg3 {[%emt 0:00:06]} f5 {[%emt 0:00:01]} 54. Kf2 {[%emt 0:00:03]} Kg6 {[%emt 0:00:03]} 55. Ke2 {[%emt 0:00:01]} Kf6 {[%emt 0:00:01]} 56. Kd3 {[%emt 0:00:01]} Ke5 {[%emt 0:00:03]} 57. Kc4 {[%emt 0:00:13]} g6 {[%emt 0:00:06]} 58. Ba5 {[%emt 0:00:09]} Kd6 {[%emt 0:00:20]} 59. Bb4+ {[%emt 0:00:02]} Kc6 {[%emt 0:00:04]} (59... Ke5 $16 {war angesagt.}) 60. Ba3 {[%emt 0:00:13]} (60. f4 $1 $18) 60... Nc7 $16 {[%emt 0:00:09]} 61. Bf8 {[%emt 0:00:05]} h5 {[%emt 0:00:01]} 62. Ba3 {[%emt 0:00:16]} Kd7 {[%emt 0:00:03]} 63. Bb4 {[%emt 0:00:18]} Ke6 {[%emt 0:00:01]} 64. Bc3 {[%emt 0:00:09]} Nd5 {[%emt 0:00:02]} 65. Bd4 {[%emt 0:00:01]} Ne7 {[%emt 0:00:04]} 66. Kc5 {[%emt 0:00:03]} ({Besser ist} 66. h4 $16) 66... Nd5 {[%emt 0:00:03]} (66... g5 $1 $11) 67. g3 {[%emt 0:00:29]} g5 {[%emt 0:00:12]} 68. f4 {[%emt 0:00:42]} (68. Kc4 $1 $16) 68... g4 {[%emt 0:00:07]} (68... h4 $1 $11 69. gxh4 (69. fxg5 hxg3 70. g6 Ne7 $17) 69... gxf4) 69. h4 {[%emt 0:00:10]} (69. hxg4 $16 hxg4 70. e4) 69... Ne7 $11 {[%emt 0:00:06]} 70. Bg7 {[%emt 0:00:45]} Nd5 {[%emt 0:00:10]} 71. Kd4 {[%emt 0:00:02]} Nb4 {[%emt 0:00:04]} 72. Bf8 {[%emt 0:00:10]} Nc2+ {[%emt 0:00:04]} 73. Kd3 {[%emt 0:00:12]} Ne1+ {[%emt 0:00:01]} 74. Kc4 {[%emt 0:00:23]} (74. Ke2 $5 Nf3 $8 75. Bb4 $11) 74... Nf3 {[%emt 0:00:09]} 75. Bc5 $2 {[%emt 0:00:08][%mdl 8192]} (75. Bb4 $11) 75... Ng1 $2 {[%emt 0:00:04]} (75... Nd2+ $19 76. Kd3 Ne4) 76. Kd3 $11 {[%emt 0:00:07]} Nf3 {[%emt 0:00:02]} 77. e4 {[%emt 0:00:15]} Nh2 {[%emt 0:00:07]} (77... fxe4+ $14 78. Kxe4 Nd2+ 79. Kd3 Nf1) 78. e5 $16 {[%emt 0:00:07]} Kd5 {[%emt 0:00:04]} 79. Bf2 {[%emt 0:00:01]} Nf3 {[%emt 0:00:03]} 80. Kc3 {[%emt 0:00:02]} Nh2 {[%emt 0:00:03]} 81. Kb4 {[%emt 0:00:02]} Nf1 {[%emt 0:00:01] [#]} 82. Kb5 $1 {[%emt 0:00:01]} Nd2 $2 {[%emt 0:00:02] [#]} (82... Ke6 $16 83. Kc5 Nd2) 83. Kb6 $1 $18 {[%emt 0:00:02]} Ne4 {[%emt 0:00:02]} 84. Be1 {[%emt 0:00:00]} Ke6 {[%emt 0:00:01]} 85. Kc7 $2 {[%emt 0:00:01]} (85. Kc6 {Und Kb6 würde nun gewinnen.} Ke7 86. Kd5) 85... Nc5 $18 {[%emt 0:00:10]} 86. Kd8 {[%emt 0:00:02]} Nd3 $2 {[%emt 0:00:10]} (86... Kf7 87. Bb4 Ne6+ 88. Kd7 Ng7) 87. Bd2 $18 {[%emt 0:00:03]} Kf7 {[%emt 0:00:14]} 88. Be3 {[%emt 0:00:08]} Nb4 {[%emt 0:00:08]} 89. Kd7 {[%emt 0:00:02]} Nd5 {[%emt 0:00:07]} 90. e6+ {[%emt 0:00:03]} Kf6 {[%emt 0:00:04]} 91. Bd4+ {[%emt 0:00:03]} Kg6 {[%emt 0:00:10]} 92. e7 {[%emt 0:00:03]} Kh7 {[%emt 0:00:09]} 93. e8=Q {[%emt 0:00:04]} 1-0

[Event "Grand Prix Romania 1st Stage 2024"]
[Site "Bucuresti"]
[Date "2024.03.24"]
[Round "7.22"]
[White "Costachi, Mihnea"]
[Black "Veneteanu, Mihai"]
[Result "1-0"]
[ECO "D58"]
[WhiteElo "2470"]
[BlackElo "2026"]
[Annotator "TA"]
[PlyCount "67"]
[EventDate "2024.03.20"]
[EventType "swiss"]
[EventCountry "ROU"]
[SourceTitle "playchess.com"]
[Source "ChessBase"]
[SourceQuality "1"]
[TimeControl "900+5"]

{[%evp 24,67,31,11,19,10,22,16,60,52,61,50,81,75,81,54,56,53,74,72,145,160,181,175,188,185,187,153,149,154,140,120,127,127,127,128,117,118,134,128,126,125,125,133,123,122]} 1. d4 {[%emt 0:00:01]} Nf6 {[%emt 0:00:01]} 2. c4 {[%emt 0:00:05]} e6 {[%emt 0:00:01]} 3. Nf3 {[%emt 0:00:02]} d5 {[%emt 0:00:01]} 4. Nc3 {[%emt 0:00:01]} Be7 {[%emt 0:00:01]} 5. Bg5 {[%emt 0:00:05]} O-O {[%emt 0:00:10]} 6. e3 {[%emt 0:00:06]} h6 {[%emt 0:00:02]} 7. Bh4 {[%emt 0:00:02]} b6 {[%emt 0:00:02]} 8. cxd5 {[%emt 0:00:02]} exd5 {[%emt 0:00:02]} 9. Bd3 {[%emt 0:00:12]} Nbd7 {[%emt 0:01:44]} 10. O-O {[%emt 0:00:14]} Bb7 {[%emt 0:00:04]} 11. Rc1 {[%emt 0:00:19]} Ne4 {[%emt 0:01:03]} 12. Bxe7 {[%emt 0:00:38]} Qxe7 {[%emt 0:00:02]} 13. Qb3 {[%emt 0:00:37]} ({Reject} 13. Nxe4 dxe4 14. Rxc7 Bc8 $15) 13... Ndf6 {[%emt 0:00:31]} 14. Bb1 {[%emt 0:00:28]} Rac8 {[%emt 0:00:17]} 15. Nb5 {[%emt 0:00:39][%cal Bc3b5,Bb5a7,Ba7c6,Bc6a7][%mdl 32]} a6 {[%emt 0:00:24] The position is equal.} 16. Na7 {[%emt 0:00:13]} Ra8 {[%emt 0:00:28]} 17. Nc6 {[%emt 0:00:06]} Qd6 {[%emt 0:01:27] [#]} 18. Qc2 {[%emt 0:01:30]} Rfe8 {[%emt 0:00:38]} 19. h3 {[%emt 0:02:49]} Rac8 {[%emt 0:02:55]} 20. Rfd1 {[%emt 0:00:46]} Re6 {[%emt 0:00:08]} 21. Nfe5 {[%emt 0:00:44]} Nd7 {[%emt 0:00:25] [#]} (21... Bxc6 $142 22. Qxc6 Qd8) 22. Na7 $1 $16 {[%emt 0:02:06]} Ra8 {[%emt 0:00:46]} 23. Qxc7 {[%emt 0:00:01]} Qxc7 {[%emt 0:05:39]} 24. Rxc7 {[%emt 0:00:02]} Nxe5 {[%emt 0:00:01]} 25. dxe5 {[%emt 0:01:49]} Rxa7 {[%emt 0:00:12]} 26. Bxe4 {[%emt 0:00:04]} dxe4 {[%emt 0:00:01]} 27. Rd8+ {[%emt 0:01:12]} Kh7 {[%emt 0:00:02]} 28. Rdd7 {[%emt 0:00:01] White has more active pieces.} ({Much worse is} 28. Rxf7 $6 Ra8 (28... Rxe5 $2 {is the wrong capture.} 29. Rdd7 $18) 29. Rdd7 Bc6 30. Rxg7+ Kh8 31. Rh7+ Kg8 32. Rdg7+ Kf8 $11) 28... Bc6 {[%emt 0:00:08]} 29. Rxa7 {[%emt 0:00:03]} Bxd7 {[%emt 0:00:01]} 30. Rxd7 {[%emt 0:00:01]} Kg6 {[%emt 0:00:13]} 31. Rb7 {[%emt 0:00:36]} b5 {[%emt 0:00:05]} 32. Ra7 {[%emt 0:00:03]} h5 {[%emt 0:00:03]} 33. g3 {[%emt 0:00:33]} Rc6 {[%emt 0:00:03]} 34. b4 {[%emt 0:00:08] Weighted Error Value: White=0.07 (flawless) /Black=0.15 (very precise) .  Mistake:       	---       	Black=1      Inaccurate:     	White=1     	Black=2      OK:         	White=9     	Black=8      Best:        	White=1     	Black=1      Strong:       	White=1     	---} 1-0